bitfinex/quotes_SOLUSD_20251117
["timestamp","ask_amount","ask_price","bid_price","bid_amount"]
[1763389898166,12.8217248,137.89,137.82,0.1]
[1763389898452,9.78882769,137.92,137.82,0.1]
[1763389898453,22.61055249,137.86,137.82,0.1]
[1763389898620,9.78882769,137.84,137.82,0.1]
[1763389898823,18.12096,137.9,137.7,0.72621641]
[1763389898824,9.78882769,137.82,137.7,0.72621641]
[1763389899124,23.30055249,137.83,137.79,12.8217248]
[1763389899125,0.69,137.83,137.79,12.8217248]
[1763389899326,9.78882769,137.84,137.78,18.12096]
[1763389899528,9.78882769,137.81,137.69,0.1]
[1763389899736,22.61055249,137.81,137.68,0.7263219]
[1763389900055,9.78882769,137.83,137.79,12.8217248]
[1763389900237,9.78882769,137.83,137.69,0.1]
[1763389900238,22.61055249,137.8,137.69,0.1]
[1763389900421,12.8217248,137.8,137.69,0.1]
[1763389900621,9.78882769,137.76,137.64,0.1]
[1763389900826,18.12096,137.83,137.59,0.1]
[1763389900827,12.8217248,137.72,137.59,0.1]
[1763389901148,12.8217248,137.7,137.65,12.8217248]
[1763389901318,12.8217248,137.69,137.6,0.1]
[1763389901515,12.8217248,137.68,137.63,12.8217248]
[1763389901739,12.8217248,137.68,137.62,12.8217248]
[1763389901931,0.69,137.67,137.63,12.8217248]
[1763389902143,0.69,137.67,137.63,30.9426848]
[1763389902364,13.5117248,137.67,137.63,18.12096]
[1763389902565,0.69,137.67,137.63,18.12096]
[1763389902763,9.78882769,137.65,137.54,3.79999386]
[1763389903054,12.8217248,137.62,137.52,17.42]
[1763389903357,9.78882769,137.66,137.61,30.9426848]
[1763389903530,9.78882769,137.68,137.64,12.8217248]
[1763389903732,0.69,137.77,137.67,30.9426848]
[1763389903955,12.8217248,137.78,137.73,12.8217248]
[1763389904260,18.12096,137.78,137.57,0.72690266]
[1763389904431,12.8217248,137.73,137.68,30.9426848]
[1763389904632,9.78882769,137.72,137.68,18.12096]
[1763389904842,9.78882769,137.7,137.65,12.8217248]
[1763389905044,0.69,137.71,137.68,12.8217248]
[1763389905346,0.69,137.71,137.66,12.8217248]
[1763389905347,0.69,137.7,137.66,12.8217248]
[1763389905551,0.69,137.75,137.69,30.9426848]
[1763389905729,0.69,137.75,137.72,12.8217248]
[1763389905933,0.69,137.75,137.6,0.72674418]
[1763389905934,13.5117248,137.75,137.61,0.1]
[1763389906157,13.5117248,137.75,137.71,12.8217248]
[1763389906158,0.69,137.75,137.71,12.8217248]
[1763389906363,35.55992914,137.86,137.73,30.9426848]
[1763389906532,0.69,137.85,137.79,12.8217248]
[1763389906736,0.69,137.85,137.81,18.12096]
[1763389906933,0.69,137.85,137.77,18.12096]
[1763389907159,0.69,137.85,137.79,12.8217248]
[1763389907344,13.5117248,137.85,137.81,18.12096]
[1763389907666,9.78882769,137.81,137.66,0.1]
[1763389907874,18.81096,137.84,137.74,30.9426848]
[1763389908036,22.61055249,137.8,137.75,12.8217248]
[1763389908230,22.61055249,137.8,137.63,7.2655037]
[1763389908231,0.69,137.83,137.79,12.8217248]
[1763389908437,0.69,137.83,137.81,12.8217248]
[1763389908630,0.69,137.87,137.77,18.12096]
[1763389908836,0.69,137.87,137.79,12.8217248]
[1763389909046,9.78882769,137.83,137.79,12.8217248]
[1763389909251,0.69,137.87,137.82,30.9426848]
[1763389909460,9.78882769,137.82,137.71,0.1]
[1763389909668,9.78882769,137.82,137.78,18.12096]
[1763389909853,9.78882769,137.82,137.76,12.8217248]
[1763389909854,9.78882769,137.8,137.76,12.8217248]
[1763389910063,0.69,137.81,137.78,18.12096]
[1763389910337,9.78882769,137.82,137.79,12.8217248]
[1763389910565,9.78882769,137.8,137.7,18.12096]
[1763389910767,9.78882769,137.78,137.66,0.1]
[1763389910967,9.78882769,137.74,137.62,0.1]
[1763389911146,12.8217248,137.73,137.68,12.8217248]
[1763389911346,9.78882769,137.72,137.68,12.8217248]
[1763389911635,9.78882769,137.72,137.59,0.826797]
[1763389911636,23.30055249,137.72,137.67,12.8217248]
[1763389911839,10.47882769,137.72,137.68,12.8217248]
[1763389912070,7.25326261,137.87,137.74,18.12096]
[1763389912277,0.69,137.79,137.77,12.8217248]
[1763389912478,0.69,137.79,137.74,18.12096]
[1763389912765,0.69,137.79,137.69,0.1]
[1763389912766,0.69,137.83,137.78,12.8217248]
[1763389912956,0.69,137.83,137.81,12.8217248]
[1763389913145,0.69,137.83,137.8,18.12096]
[1763389913338,0.69,137.87,137.85,18.12096]
[1763389913540,0.69,137.87,137.84,18.12096]
[1763389913871,12.8217248,137.85,137.73,18.12096]
[1763389914047,10.47882769,137.84,137.8,30.9426848]
[1763389914374,10.47882769,137.84,137.8,18.12096]
[1763389914535,0.69,137.83,137.81,12.8217248]
[1763389914739,0.69,137.83,137.75,9.78882769]
[1763389914944,9.78882769,137.87,137.83,18.12096]
[1763389915136,17.44,137.99,137.86,12.8217248]
[1763389915137,19.44,137.99,137.86,12.8217248]
[1763389915381,62.8217248,138.06,137.79,36.095943]
[1763389915382,0.69,137.97,137.91,12.8217248]
[1763389915688,0.69,137.97,137.87,18.12096]
[1763389915962,0.69,137.97,137.85,0.1]
[1763389915963,0.69,137.97,137.94,12.8217248]
[1763389916169,2.0,138.11,137.96,12.8217248]
[1763389916377,17.44,138.13,137.95,18.12096]
[1763389916378,0.69,138.01,137.99,12.8217248]
[1763389916940,13.5117248,138.01,137.89,10.51404344]
[1763389917169,0.69,138.01,137.92,18.12096]
[1763389917345,33.55992914,138.1,137.99,12.8217248]
[1763389917546,12.8217248,138.01,137.97,18.12096]
[1763389917763,0.69,138.03,138.02,18.12096]
[1763389917937,86.23036856,138.19,138.02,30.9426848]
[1763389917938,0.69,138.07,138.02,30.9426848]
[1763389918142,0.69,138.07,138.03,12.8217248]
[1763389918388,0.69,138.07,138.06,12.8217248]
[1763389918848,0.69,138.1,138.06,12.8217248]
[1763389919048,0.69,138.09,138.07,12.8217248]
[1763389919271,0.69,138.09,138.05,18.12096]
[1763389919493,0.69,138.09,138.04,18.12096]
[1763389919648,33.7702977,138.19,138.08,12.8217248]
[1763389919851,0.69,138.13,138.04,18.12096]
[1763389920174,12.8217248,138.11,138.06,18.12096]
[1763389920388,9.78882769,138.08,138.04,30.9426848]
[1763389920678,22.61055249,138.05,137.9,0.1]
[1763389920883,22.61055249,138.05,137.79,36.095943]
[1763389920884,12.8217248,137.97,137.92,12.8217248]
[1763389921093,22.61055249,137.95,137.9,12.8217248]
[1763389921264,9.78882769,137.95,137.81,0.1]
[1763389921467,9.78882769,137.93,137.81,0.1]
[1763389921790,0.69,138.12,137.92,12.8217248]
[1763389921950,0.69,138.18,138.12,18.12096]
[1763389922147,0.69,138.18,138.16,12.8217248]
[1763389922348,0.2,138.23,138.2,18.12096]
[1763389922596,0.2,138.23,138.22,12.8217248]
[1763389922879,0.2,138.25,138.24,18.12096]
[1763389923079,0.2,138.25,138.24,43.7644096]
[1763389923296,0.69,138.29,138.24,30.9426848]
[1763389923481,0.2,138.33,138.28,30.9426848]
[1763389923776,0.2,138.33,138.3,12.8217248]
[1763389924093,9.78882769,138.32,138.3,12.8217248]
[1763389924255,0.2,138.33,138.3,12.8217248]
[1763389924582,0.89,138.31,138.28,12.8217248]
[1763389924787,9.78882769,138.3,138.29,12.8217248]
[1763389924969,9.78882769,138.3,138.27,12.8217248]
[1763389924970,10.47882769,138.3,138.27,12.8217248]
[1763389925165,9.78882769,138.28,138.27,12.8217248]
[1763389925376,9.78882769,138.28,138.18,0.72369373]
[1763389925559,9.78882769,138.26,138.18,0.69]
[1763389925955,9.78882769,138.28,138.21,12.8217248]
[1763389926155,0.69,138.26,138.15,0.69]
[1763389926555,9.78882769,138.23,138.11,1.41406053]
[1763389926755,9.78882769,138.21,138.02,36.9028167]
[1763389927060,9.78882769,138.15,138.0,0.69]
[1763389927264,9.78882769,138.17,138.08,12.8217248]
[1763389927470,10.48882769,138.17,138.12,12.8217248]
[1763389927662,9.78882769,138.14,138.0,0.69]
[1763389927864,9.78882769,138.12,138.04,12.8217248]
[1763389928096,0.7,138.14,138.11,18.12096]
[1763389928262,9.78882769,138.21,138.13,30.9426848]
[1763389928456,10.48882769,138.21,138.16,12.8217248]
[1763389928656,9.78882769,138.19,138.08,0.69]
[1763389928897,2.0,138.25,138.08,0.69]
[1763389928898,0.7,138.23,138.16,11.03427018]
[1763389929214,9.78882769,138.22,138.16,11.03427018]
[1763389929360,9.78882769,138.22,138.18,11.03427018]
[1763389929562,0.7,138.27,138.2,11.03427018]
[1763389929763,0.2,138.31,138.2,11.03427018]
[1763389929764,11.93427018,138.31,138.24,11.03427018]
[1763389929975,0.2,138.31,138.21,0.69]
[1763389930178,0.2,138.31,138.27,11.03427018]
[1763389930557,0.2,138.31,138.28,11.03427018]
[1763389930759,0.2,138.31,138.3,11.03427018]
[1763389930990,0.2,138.31,138.29,11.03427018]
[1763389931258,0.2,138.31,138.3,11.03427018]
[1763389931604,7.22096422,138.49,138.3,11.03427018]
[1763389931605,0.7,138.42,138.33,18.12096]
[1763389931762,0.7,138.46,138.39,11.03427018]
[1763389932089,11.03427018,138.44,138.33,18.12096]
[1763389932291,11.03427018,138.44,138.16,86.24454962]
[1763389932292,0.7,138.45,138.4,18.12096]
[1763389932469,0.7,138.48,138.42,11.03427018]
[1763389932860,0.2,138.51,138.46,11.03427018]
[1763389933105,0.2,138.51,138.49,11.03427018]
[1763389933270,0.2,138.51,138.48,18.12096]
[1763389933472,0.7,138.62,138.5,11.03427018]
[1763389933702,0.7,138.62,138.48,18.12096]
[1763389933703,0.7,138.62,138.56,29.15523018]
[1763389934000,0.7,138.62,138.59,11.03427018]
[1763389934294,0.7,138.69,138.64,18.12096]
[1763389934502,0.2,138.72,138.66,11.03427018]
[1763389934703,0.2,138.72,138.71,11.03427018]
[1763389934869,0.2,138.72,138.61,0.72144866]
[1763389935067,0.2,138.72,138.67,18.12096]
[1763389935377,0.9,138.72,138.67,11.03427018]
[1763389935582,0.7,138.71,138.64,18.12096]
[1763389935969,11.23427018,138.72,138.66,18.12096]
[1763389936170,11.23427018,138.72,138.5,0.72202166]
[1763389936171,0.2,138.72,138.67,18.12096]
[1763389936384,0.68,138.71,138.56,9.78882769]
[1763389936582,11.91427018,138.72,138.58,9.78882769]
[1763389936772,9.78882769,138.7,138.65,18.12096]
[1763389936988,21.02309787,138.72,138.65,29.15523018]
[1763389937194,0.2,138.72,138.71,18.12096]
[1763389937366,0.88,138.72,138.67,18.12096]
[1763389937566,0.2,138.72,138.68,11.03427018]
[1763389938109,0.68,138.71,138.61,0.72144866]
[1763389938326,18.80096,138.71,138.6,9.12]
[1763389938615,11.03427018,138.65,138.57,20.15427018]
[1763389938916,0.2,138.72,138.57,20.15427018]
[1763389938917,0.2,138.72,138.67,18.12096]
[1763389939071,0.2,138.72,138.71,11.03427018]
[1763389939274,0.2,138.72,138.67,18.12096]
[1763389939508,0.68,138.82,138.71,11.03427018]
[1763389939708,1.93593088,138.9,138.79,29.15523018]
[1763389940004,0.68,138.89,138.85,18.12096]
[1763389940305,0.68,138.89,138.83,18.12096]
[1763389940608,1.93593088,138.9,138.84,18.12096]
[1763389940824,1.93593088,138.9,138.88,11.03427018]
[1763389940966,1.49593088,138.9,138.89,11.03427018]
[1763389941398,1.49593088,138.9,138.89,21.54309211]
[1763389941599,0.68,139.03,138.92,18.12096]
[1763389941776,50.0,139.15,139.0,11.03427018]
[1763389941777,11.03427018,139.07,139.0,11.03427018]
[1763389941972,11.03427018,139.05,139.01,18.12096]
[1763389942372,0.68,139.04,138.98,11.03427018]
[1763389942574,0.68,139.04,138.9,11.03427018]
[1763389942575,0.68,139.04,138.93,18.12096]
[1763389942790,0.68,139.04,138.99,11.03427018]
[1763389942995,0.68,139.04,138.94,0.71973513]
[1763389943297,0.68,139.04,138.98,29.15523018]
[1763389943500,11.03427018,139.0,138.84,9.78882769]
[1763389943819,9.78882769,139.01,138.83,18.0803054]
[1763389943972,11.03427018,138.95,138.84,9.78882769]
[1763389944173,27.90978769,138.95,138.83,0.7203054]
[1763389944371,11.03427018,138.89,138.76,0.72066878]
[1763389944579,9.78882769,138.91,138.81,11.03427018]
[1763389944804,10.46882769,138.91,138.71,0.72092855]
[1763389945008,0.68,138.9,138.71,0.72092855]
[1763389945334,11.03427018,138.8,138.61,50.0]
[1763389945616,9.78882769,138.82,138.76,11.03427018]
[1763389945802,11.03427018,138.81,138.62,50.72139662]
[1763389945990,18.80096,138.82,138.62,0.72139662]
[1763389946314,9.78882769,138.88,138.79,18.12096]
[1763389946616,9.78882769,138.92,138.88,18.12096]
[1763389946777,0.68,138.91,138.8,0.72046109]
[1763389947130,0.68,138.91,138.86,11.03427018]
[1763389947404,0.68,138.91,138.78,9.78882769]
[1763389947630,9.78882769,138.9,138.78,9.78882769]
[1763389947974,0.68,138.89,138.84,11.03427018]
[1763389948174,0.68,138.89,138.79,9.78882769]
[1763389948376,0.68,138.89,138.75,11.03427018]
[1763389948377,0.68,138.89,138.78,9.78882769]
[1763389948576,0.68,138.89,138.71,35.30599891]
[1763389948577,9.78882769,138.86,138.71,0.72092855]
[1763389948783,9.78882769,138.86,138.6,11.03427018]
[1763389948784,20.82309787,138.81,138.74,11.03427018]
[1763389949002,18.12096,138.79,138.6,11.03427018]
[1763389949201,1.18,138.85,138.72,11.03427018]
[1763389949395,9.78882769,138.79,138.73,18.12096]
[1763389949608,0.68,138.78,138.76,18.12096]
[1763389949917,20.82309787,138.77,138.69,11.03427018]
[1763389950121,11.03427018,138.74,138.6,11.03427018]
[1763389950283,1.58103077,138.73,138.65,11.03427018]
[1763389950476,11.03427018,138.72,138.66,11.03427018]
[1763389950707,0.68,138.72,138.64,11.03427018]
[1763389950912,0.68,138.71,138.6,11.03427018]
[1763389951129,0.90103077,138.73,138.68,11.03427018]
[1763389951130,0.68,138.73,138.68,11.03427018]
[1763389951335,0.90057636,138.8,138.71,11.03427018]
[1763389951629,0.90057636,138.8,138.64,0.72129255]
[1763389951630,0.68,138.79,138.76,18.12096]
[1763389951991,1.5799928,138.89,138.78,11.03427018]
[1763389952194,0.68,138.89,138.86,11.03427018]
[1763389952409,0.68,138.93,138.85,27.90978769]
[1763389952613,0.68,138.93,138.87,11.03427018]
[1763389952834,0.68,138.92,138.87,11.03427018]
[1763389952993,11.03427018,138.95,138.88,11.03427018]
[1763389953324,11.9339391,138.94,138.87,11.03427018]
[1763389953542,0.68,138.95,138.9,11.03427018]
[1763389953713,1.57902186,139.04,138.93,11.03427018]
[1763389953913,2.68,139.03,138.89,18.12096]
[1763389954124,11.03427018,138.95,138.88,18.12096]
[1763389954321,11.03427018,138.96,138.89,11.03427018]
[1763389954653,19.02056417,138.95,138.76,0.72066878]
[1763389954841,9.78882769,138.93,138.75,11.03427018]
[1763389955011,0.89979844,138.92,138.87,11.03427018]
[1763389955215,11.03427018,138.97,138.91,11.03427018]
[1763389955514,0.68,138.97,138.92,11.03427018]
[1763389955733,0.68,138.96,138.92,11.03427018]
[1763389955933,35.66341971,139.12,138.9,18.12096]
[1763389955934,11.03427018,139.01,138.9,18.12096]
[1763389956128,1.5787633,139.08,139.0,29.15523018]
[1763389956315,0.68,139.08,139.0,18.12096]
[1763389956514,0.68,139.08,139.06,11.03427018]
[1763389956911,11.9330981,139.07,138.94,0.71973513]
[1763389957216,11.03427018,139.07,138.99,18.12096]
[1763389957520,0.67,139.09,139.04,11.03427018]
[1763389957840,2.0,139.16,139.03,27.90978769]
[1763389957841,0.67,139.1,139.03,27.90978769]
[1763389958037,0.67,139.14,139.09,11.03427018]
[1763389958242,0.67,139.18,139.13,11.03427018]
[1763389958463,1.93593088,139.19,139.17,11.03427018]
[1763389958664,1.93593088,139.19,139.1,10.50773495]
[1763389958884,0.67,139.18,139.13,29.15523018]
[1763389959164,0.67,139.18,139.13,18.12096]
[1763389959369,1.93593088,139.19,139.15,11.03427018]
[1763389959871,0.67,139.18,139.0,17.98446853]
[1763389960041,1.93593088,139.19,139.14,18.12096]
[1763389960472,2.60593088,139.19,139.15,11.03427018]
[1763389960671,2.60593088,139.19,139.14,18.12096]
[1763389960672,1.93593088,139.19,139.14,18.12096]
[1763389960842,1.93593088,139.19,139.18,18.12096]
[1763389961041,1.93593088,139.19,139.18,29.15523018]
[1763389961237,1.93593088,139.19,139.06,53.7504661]
[1763389961238,13.64020106,139.19,138.98,7.19527989]
[1763389961441,0.67,139.18,139.12,11.03427018]
[1763389961672,1.93593088,139.19,139.17,11.03427018]
[1763389961837,1.93593088,139.19,139.16,29.15523018]
[1763389962039,1.93593088,139.19,139.17,11.03427018]
[1763389962245,1.93593088,139.19,139.18,11.03427018]
[1763389963070,1.93593088,139.19,139.18,20.82309787]
[1763389963247,1.93593088,139.19,139.08,17.3]
[1763389963449,1.93593088,139.19,139.18,11.03427018]
[1763389963655,1.93593088,139.19,139.09,0.71895894]
[1763389963839,1.93593088,139.19,139.17,11.03427018]
[1763389964040,1.93593088,139.19,139.18,11.03427018]
[1763389964370,1.93593088,139.19,139.11,11.03427018]
[1763389964371,0.67,139.18,139.11,11.03427018]
[1763389964558,0.67,139.18,138.97,25.18529178]
[1763389964559,11.03427018,139.16,139.09,11.03427018]
[1763389964759,1.56811754,139.18,139.11,11.03427018]
[1763389964959,0.67,139.18,139.14,11.03427018]
[1763389965162,1.93593088,139.19,139.17,11.03427018]
[1763389965469,1.93593088,139.19,139.18,11.03427018]
[1763389965872,1.93593088,139.19,139.18,20.82309787]
[1763389966073,0.67,139.36,139.22,18.12096]
[1763389966247,0.67,139.4,139.35,11.03427018]
[1763389966443,0.67,139.4,139.39,11.03427018]
[1763389966685,0.67,139.47,139.38,18.12096]
[1763389966846,0.67,139.47,139.36,18.12096]
[1763389967159,0.89631435,139.46,139.4,11.03427018]
[1763389967358,0.67,139.47,139.43,11.03427018]
[1763389967552,0.89618583,139.48,139.35,11.03427018]
[1763389967553,0.67,139.54,139.48,18.12096]
[1763389967752,0.67,139.58,139.48,29.15523018]
[1763389967950,1.56554377,139.58,139.48,29.15523018]
[1763389968161,2.0,139.71,139.48,40.18950036]
[1763389968162,0.67,139.62,139.48,40.18950036]
[1763389968352,11.03427018,139.59,139.49,0.71689726]
[1763389968553,11.03427018,139.6,139.46,18.12096]
[1763389968757,0.89547961,139.59,139.44,18.12096]
[1763389968954,0.67,139.58,139.39,9.78882769]
[1763389969277,11.70427018,139.56,139.45,18.12096]
[1763389969578,0.5,139.55,139.38,18.12096]
[1763389969754,0.67,139.56,139.53,11.03427018]
[1763389969945,0.5,139.55,139.36,0.71756601]
[1763389970147,0.5,139.55,139.2,11.03427018]
[1763389970148,18.12096,139.48,139.2,11.03427018]
[1763389970348,9.78882769,139.46,139.34,11.03427018]
[1763389970547,0.5,139.45,139.21,0.71833919]
[1763389970850,9.78882769,139.4,139.3,11.03427018]
[1763389971150,0.5,139.39,139.15,0.71864893]
[1763389971371,9.78882769,139.36,139.27,11.03427018]
[1763389971560,11.03427018,139.28,139.15,0.71864893]
[1763389971760,0.67,139.27,139.18,11.03427018]
[1763389972067,0.67,139.27,139.19,11.03427018]
[1763389972267,0.67,139.27,139.16,11.03427018]
[1763389972457,11.03427018,139.2,139.13,11.03427018]
[1763389972657,10.45882769,139.27,139.19,11.03427018]
[1763389972658,0.67,139.27,139.19,11.03427018]
[1763389972976,0.67,139.32,139.23,29.15523018]
[1763389973175,0.5,139.39,139.19,9.78882769]
[1763389973176,11.70427018,139.31,139.24,11.03427018]
[1763389973351,11.03427018,139.27,139.2,0.7183908]
[1763389973547,1.17,139.4,139.26,11.03427018]
[1763389973755,0.67,139.39,139.29,11.03427018]
[1763389973963,11.03427018,139.34,139.27,18.12096]
[1763389974166,0.67,139.39,139.29,11.03427018]
[1763389974366,0.67,139.39,139.3,29.15523018]
[1763389974583,11.03427018,139.35,139.3,18.12096]
[1763389974772,0.67,139.39,139.25,0.71813285]
[1763389974773,11.03427018,139.34,139.27,29.15523018]
[1763389975086,0.5,139.46,139.33,11.03427018]
[1763389975254,11.03427018,139.38,139.31,29.87305373]
[1763389975561,11.03427018,139.38,139.2,11.03427018]
[1763389975562,0.67,139.43,139.34,11.03427018]
[1763389975754,0.5,139.54,139.39,29.15523018]
[1763389975755,11.70427018,139.47,139.39,29.15523018]
[1763389975948,11.70427018,139.47,139.37,0.71751452]
[1763389975949,11.03427018,139.45,139.37,0.71751452]
[1763389976169,11.03427018,139.41,139.25,0.71813285]
[1763389976383,0.67,139.46,139.25,0.71813285]
[1763389976384,11.03427018,139.36,139.32,18.12096]
[1763389976684,11.03427018,139.37,139.29,0.71792662]
[1763389976977,2.5,139.45,139.25,9.78882769]
[1763389977204,9.78882769,139.43,139.31,29.15523018]
[1763389977352,11.03427018,139.37,139.31,18.12096]
[1763389977553,11.03427018,139.4,139.33,11.03427018]
[1763389977767,9.78882769,139.41,139.31,0.71782355]
[1763389977965,9.78882769,139.41,139.29,11.03427018]
[1763389977966,10.95882769,139.41,139.29,0.71792662]
[1763389978174,0.67,139.4,139.31,11.03427018]
[1763389978377,11.03427018,139.39,139.33,11.03427018]
[1763389978559,0.67,139.47,139.39,18.12096]
[1763389978875,11.70427018,139.54,139.46,29.15523018]
[1763389979067,11.03427018,139.52,139.46,11.03427018]
[1763389979266,18.12096,139.54,139.38,0.71746305]
[1763389979476,11.03427018,139.48,139.42,11.03427018]
[1763389979675,0.5,139.53,139.4,18.12096]
[1763389979676,0.67,139.53,139.45,11.03427018]
[1763389979853,0.67,139.53,139.4,28.6271478]
[1763389980057,0.67,139.53,139.46,11.03427018]
[1763389980255,11.03427018,139.5,139.36,0.71756601]
[1763389980581,11.53427018,139.49,139.41,11.03427018]
[1763389980762,0.67,139.51,139.44,11.03427018]
[1763389980977,0.67,139.5,139.44,11.03427018]
[1763389981291,0.67,139.56,139.49,11.03427018]
[1763389981594,0.67,139.54,139.48,11.03427018]
[1763389981759,0.67,139.54,139.5,11.03427018]
[1763389981961,0.67,139.54,139.51,11.03427018]
[1763389982160,17.89929612,139.68,139.45,18.8380629]
[1763389982161,0.2,139.71,139.49,18.12096]
[1763389982390,11.03427018,139.6,139.49,27.44096]
[1763389982693,0.67,139.62,139.53,11.03427018]
[1763389982874,1.17,139.66,139.6,11.03427018]
[1763389983060,0.87,139.71,139.65,11.03427018]
[1763389983262,0.2,139.71,139.7,11.03427018]
[1763389983465,0.2,139.71,139.7,29.15523018]
[1763389984356,0.2,139.71,139.69,0.71587085]
[1763389984357,0.87,139.71,139.69,0.71587085]
[1763389984558,0.2,139.71,139.68,18.12096]
[1763389984765,0.2,139.71,139.7,11.03427018]
[1763389984987,0.2,139.71,139.66,18.12096]
[1763389985290,0.87,139.71,139.66,11.03427018]
[1763389985495,0.5,139.7,139.64,11.03427018]
[1763389985666,0.87,139.71,139.51,35.92104348]
[1763389985667,0.2,139.71,139.68,11.03427018]
[1763389985870,0.2,139.71,139.54,7.16640389]
[1763389985871,0.67,139.7,139.65,18.12096]
[1763389986069,0.67,139.7,139.69,11.03427018]
[1763389986267,0.67,139.7,139.64,0.71612718]
[1763389986461,9.78882769,139.68,139.6,11.03427018]
[1763389986662,0.5,139.67,139.52,10.5055708]
[1763389986975,9.78882769,139.67,139.6,11.03427018]
[1763389987172,0.2,139.71,139.57,9.32]
[1763389987377,11.70427018,139.67,139.52,10.05674311]
[1763389987577,11.03427018,139.65,139.56,11.03427018]
[1763389987778,11.53427018,139.64,139.56,11.03427018]
[1763389987979,9.78882769,139.61,139.48,9.34]
[1763389988187,0.5,139.6,139.48,9.34]
[1763389988393,0.67,139.64,139.58,11.03427018]
[1763389988567,11.70427018,139.7,139.63,11.03427018]
[1763389988763,11.03427018,139.64,139.55,12.54260198]
[1763389988971,0.5,139.65,139.58,12.54260198]
[1763389989265,9.78882769,139.61,139.46,9.34]
[1763389989484,9.78882769,139.59,139.47,12.54260198]
[1763389989693,12.54260198,139.56,139.4,9.34]
[1763389989886,12.54260198,139.54,139.46,12.54260198]
[1763389990078,12.54260198,139.49,139.42,12.54260198]
[1763389990593,12.54260198,139.46,139.39,12.54260198]
[1763389991093,18.12096,139.51,139.3,10.05787508]
[1763389991094,1.56637863,139.45,139.41,12.54260198]
[1763389991293,12.54260198,139.43,139.35,12.54260198]
[1763389991591,9.78882769,139.44,139.3,10.05787508]
[1763389991592,14.10904489,139.44,139.37,12.54260198]
[1763389991795,12.54260198,139.42,139.3,9.34]
[1763389992002,13.4392378,139.41,139.33,12.54260198]
[1763389992219,0.67,139.42,139.37,12.54260198]
[1763389992507,0.67,139.42,139.4,12.54260198]
[1763389992669,0.67,139.48,139.41,12.54260198]
[1763389992870,0.67,139.52,139.44,18.12096]
[1763389993103,0.67,139.52,139.42,0.7172572]
[1763389993305,0.89599311,139.51,139.42,12.54260198]
[1763389993493,0.67,139.52,139.4,18.12096]
[1763389993813,10.68469237,139.53,139.34,9.36]
[1763389993814,9.78882769,139.47,139.34,9.36]
[1763389993989,12.54260198,139.45,139.38,12.54260198]
[1763389994171,0.89644291,139.44,139.33,18.12096]
[1763389994372,0.89644291,139.44,139.19,50.0]
[1763389994373,9.78882769,139.42,139.32,12.54260198]
[1763389994580,0.89657151,139.42,139.34,12.54260198]
[1763389994784,0.67,139.41,139.25,0.71813285]
[1763389995209,0.67,139.45,139.4,12.54260198]
[1763389995424,12.54260198,139.43,139.31,18.12096]
[1763389995583,12.54260198,139.41,139.34,12.54260198]
[1763389995785,9.78882769,139.43,139.24,8.86]
[1763389995786,1.56670014,139.4,139.25,0.71813285]
[1763389995999,12.54260198,139.39,139.25,0.71813285]
[1763389996202,0.72,139.43,139.33,18.12096]
[1763389996404,1.61657151,139.42,139.34,12.54260198]
[1763389996601,0.72,139.42,139.31,18.12096]
[1763389996816,12.54260198,139.38,139.25,0.71813285]
[1763389997024,12.54260198,139.36,139.3,12.54260198]
[1763389997251,12.54260198,139.34,139.24,8.86]
[1763389997533,12.54260198,139.29,139.22,12.54260198]
[1763389997692,1.61715064,139.33,139.26,12.54260198]
[1763389997892,0.72,139.32,139.28,12.54260198]
[1763389998115,0.72,139.32,139.18,18.12096]
[1763389998116,0.72,139.36,139.31,12.54260198]
[1763389998292,0.72,139.36,139.26,18.12096]
[1763389998497,0.72,139.36,139.31,12.54260198]
[1763389998698,0.72,139.36,139.17,0.1]
[1763389998699,22.33142967,139.33,139.17,0.1]
[1763389998908,12.54260198,139.28,139.17,0.1]
[1763389999099,12.54260198,139.28,139.21,12.54260198]
[1763389999295,22.33142967,139.26,139.19,12.54260198]